fUSD/lending_fUSD_20241024
["ID","MTS","AMOUNT","RATE_DAILY","PERIOD"]
[340737712,1729758634722,-535.71,0.00064988,120]
[340737713,1729758634732,-518.04609422,0.00064988,120]
[340737714,1729758634742,-500.0,0.00064988,120]
[340737715,1729758634751,-500.0,0.00064988,120]
[340737716,1729758634761,-500.0,0.00064988,120]
[340737717,1729758634771,-500.0,0.00064988,120]
[340737718,1729758634781,-500.0,0.00064988,120]
[340737719,1729758634791,-500.0,0.00064988,120]
[340737720,1729758634802,-500.0,0.00064988,120]
[340737721,1729758634811,-500.0,0.00064988,120]
[340737722,1729758634821,-578.7,0.00064988,120]
[340737723,1729758634831,-578.7,0.00064988,120]
[340737724,1729758634841,-578.7,0.00064988,120]
[340737725,1729758634850,-578.7,0.00064988,120]
[340737726,1729758634861,-578.7,0.00064988,120]
[340737727,1729758634872,-578.7,0.00064988,120]
[340737728,1729758634882,-578.7,0.00064988,120]
[340737729,1729758634892,-578.7,0.00064988,120]
[340737730,1729758634901,-578.7,0.00064988,120]
[340737731,1729758634911,-553.74927322,0.00064988,120]
[340737732,1729758634920,-500.0,0.00064988,120]
[340737733,1729758634930,-495.79231481,0.00064988,120]
[340737734,1729758634940,-500.0,0.00064988,120]
[340737735,1729758634950,-500.0,0.00064988,120]
[340737736,1729758634959,-500.0,0.00064988,120]
[340737737,1729758634968,-500.0,0.00064988,120]
[340737738,1729758634978,-500.0,0.00064988,120]
[340737739,1729758634987,-500.0,0.00064988,120]
[340737740,1729758634997,-641.77394353,0.00064988,120]
[340737741,1729758635007,-500.0,0.00064988,120]
[340737742,1729758635121,-500.0,0.00064988,120]
[340737743,1729758635132,-500.0,0.00064988,120]
[340737744,1729758635143,-500.0,0.00064988,120]
[340737745,1729758635154,-500.0,0.00064988,120]
[340737746,1729758635166,-500.0,0.00064988,120]
[340737747,1729758635176,-500.0,0.00064988,120]
[340737748,1729758635187,-500.0,0.00064988,120]
[340737749,1729758635198,-500.0,0.00064988,120]
[340737750,1729758635207,-500.0,0.00064988,120]
[340737751,1729758635216,-321.9620309,0.00064988,120]
[340737752,1729758635225,-623.46,0.00064988,120]
[340737753,1729758635236,-623.46,0.00064988,120]
[340737754,1729758635246,-623.46,0.00064988,120]
[340737755,1729758635256,-623.46,0.00064988,120]
[340737756,1729758635267,-623.46,0.00064988,120]
[340737757,1729758635278,-623.46,0.00064988,120]
[340737758,1729758635289,-623.46,0.00064988,120]
[340737759,1729758635299,-623.46,0.00064988,120]
[340737760,1729758635311,-500.0,0.00064988,120]
[340737761,1729758635321,-500.0,0.00064988,120]
[340737762,1729758635332,-500.0,0.00064988,120]
[340737763,1729758635341,-500.0,0.00064988,120]
[340737764,1729758635353,-500.0,0.00064988,120]
[340737765,1729758635363,-500.0,0.00064988,120]
[340737766,1729758635374,-500.0,0.00064988,120]
[340737767,1729758635384,-500.0,0.00064988,120]
[340737768,1729758635395,-500.0,0.00064988,120]
[340737769,1729758635406,-346.77076234,0.00064988,120]
[340737770,1729758635415,-400.0,0.00064988,120]
[340737771,1729758635426,-400.0,0.00064988,120]
[340737772,1729758635437,-674.94,0.00064988,120]
[340737773,1729758635447,-674.94,0.00064988,120]
[340737774,1729758635456,-674.94,0.00064988,120]
[340737775,1729758635465,-674.94,0.00064988,120]
[340737776,1729758635475,-674.94,0.00064988,120]
[340737777,1729758635484,-674.94,0.00064988,120]
[340737778,1729758635494,-674.94,0.00064988,120]
[340737779,1729758635504,-674.94,0.00064988,120]
[340737780,1729758635514,-500.0,0.00064988,120]
[340737781,1729758635524,-500.0,0.00064988,120]
[340737782,1729758635534,-508.27,0.00064988,120]
[340737783,1729758635544,-500.0,0.00064988,120]
[340737784,1729758635558,-508.27,0.00064988,120]
[340737785,1729758635567,-500.0,0.00064988,120]
[340737786,1729758635577,-500.0,0.00064988,120]
[340737787,1729758635586,-508.27,0.00064988,120]
[340737788,1729758635596,-500.0,0.00064988,120]
[340737789,1729758635605,-508.27,0.00064988,120]
[340737790,1729758635615,-500.0,0.00064988,120]
[340737791,1729758635624,-508.27,0.00064988,120]
[340737792,1729758635633,-500.0,0.00064988,120]
[340737793,1729758635643,-508.27,0.00064988,120]
[340737794,1729758635652,-508.27,0.00064988,120]
[340737795,1729758635661,-508.27,0.00064988,120]
[340737796,1729758635671,-500.0,0.00064988,120]
[340737797,1729758635680,-500.0,0.00064988,120]
[340737798,1729758635690,-500.0,0.00064988,120]
[340737799,1729758635700,-500.0,0.00064988,120]
[340737800,1729758635709,-571.64456483,0.00064988,120]
[340737801,1729758635719,-593.1018,0.00064988,120]
[340737802,1729758635728,-500.0,0.00064988,120]
[340737803,1729758635737,-500.0,0.00064988,120]
[340737804,1729758635747,-500.0,0.00064988,120]
[340737805,1729758635756,-500.0,0.00064988,120]
[340737806,1729758635765,-500.0,0.00064988,120]
[340737807,1729758635775,-500.0,0.00064988,120]
[340737808,1729758635784,-317.60686422,0.00064988,120]
[340737809,1729758635793,-732383.75915539,0.00064989,120]
[340737811,1729758637932,-1028.43786479,0.00063689,120]
[340737812,1729758637943,-1396.5621352,0.00064239,120]
[340737814,1729758638044,-1929.0978648,0.00064239,120]
[340737815,1729758638054,-3325.66,0.00064429,120]
[340737816,1729758638064,-3325.66,0.00064439,120]
[340737817,1729758638075,-3325.66,0.00064985,120]
[340737818,1729758638085,-2346.56091004,0.00064988,120]
[340737819,1729758638346,-979.09908996,0.00064988,120]
[340737820,1729758638356,-3325.66,0.00064988,120]
[340737821,1729758638366,-234.88633067,0.00064988,120]
[340737822,1729758638377,-1154.85746841,0.00064988,120]
[340737823,1729758638389,-1935.91620092,0.00064988,120]
[340737824,1729758638399,-2148.66665501,0.00064989,120]
[340737825,1729758638410,-1000.0,0.00064989,120]
[340737829,1729758640159,-281.57210189,0.00064988,120]
[340737830,1729758640327,-1700.14929995,0.00064988,120]
[340737831,1729758640339,-1343.93859816,0.00064988,120]
[340737832,1729758640349,-63.05092166,0.00064988,120]
[340737833,1729758640380,-1973.61,0.00064988,120]
[340737836,1729758642992,-7500.0,0.00064879,120]
[340737837,1729758643003,-1288.99907834,0.00064988,120]
[340737838,1729758643013,-3325.66,0.00064988,120]
[340737839,1729758643023,-3325.66,0.00064988,120]
[340737840,1729758643032,-3325.66,0.00064988,120]
[340737841,1729758643043,-38982.81078109,0.00064989,120]
[340737842,1729758643055,-425.73999993,0.00064989,120]
[340737843,1729758643067,-102593.75373792,0.00064989,120]
[340737844,1729758643111,-6874.34886127,0.00064989,120]
[340737845,1729758643278,-15865.5656844,0.00064989,120]
[340737846,1729758643290,-1099380.62096859,0.00064989,120]
[340737847,1729758643300,-535.71,0.00064989,120]
[340737848,1729758643310,-535.71,0.00064989,120]
[340737849,1729758643319,-535.71,0.00064989,120]
[340737850,1729758643329,-535.71,0.00064989,120]
[340737851,1729758643339,-578.7,0.00064989,120]
[340737852,1729758643349,-578.7,0.00064989,120]
[340737853,1729758643358,-578.7,0.00064989,120]
[340737854,1729758643368,-578.7,0.00064989,120]
[340737855,1729758643377,-500.0,0.00064989,120]
[340737856,1729758643387,-500.0,0.00064989,120]
[340737857,1729758643397,-500.0,0.00064989,120]
[340737858,1729758643406,-500.0,0.00064989,120]
[340737859,1729758643417,-623.46,0.00064989,120]
[340737861,1729758643426,-623.46,0.00064989,120]
[340737863,1729758643437,-623.46,0.00064989,120]
[340737865,1729758643447,-623.46,0.00064989,120]
[340737868,1729758643457,-623.46,0.00064989,120]
[340737871,1729758643465,-490.0,0.00064989,120]
[340737873,1729758643474,-400.0,0.00064989,120]
[340737875,1729758643483,-400.0,0.00064989,120]
[340737877,1729758643493,-674.94,0.00064989,120]
[340737879,1729758643503,-674.94,0.00064989,120]
[340737881,1729758643513,-674.94,0.00064989,120]
[340737883,1729758643522,-674.94,0.00064989,120]
[340737885,1729758643531,-674.94,0.00064989,120]
[340737886,1729758643540,-500.0,0.00064989,120]
[340737887,1729758643550,-500.0,0.00064989,120]
[340737888,1729758643560,-508.27,0.00064989,120]
[340737889,1729758643570,-500.0,0.00064989,120]
[340737890,1729758643579,-508.27,0.00064989,120]
[340737891,1729758643589,-500.0,0.00064989,120]
[340737892,1729758643598,-508.27,0.00064989,120]
[340737893,1729758643608,-183.6180607,0.00064989,120]
[340737894,1729758643617,-508.27,0.00064989,120]
[340737895,1729758643627,-508.27,0.00064989,120]
[340737896,1729758643637,-3325.66,0.00064989,120]
[340737897,1729758643647,-3325.66,0.00064989,120]
[340737898,1729758643657,-3325.66,0.00064989,120]
[340737899,1729758643667,-3325.66,0.00064989,120]
[340737900,1729758643677,-3325.66,0.00064989,120]
[340737901,1729758643687,-1100000.0,0.0006499,30]
[340737902,1729758643698,-400.0,0.0006499,120]
[340737903,1729758643708,-400.0,0.0006499,120]
[340737904,1729758643717,-152.0,0.00064996,3]
[340737905,1729758643727,-165.0,0.00065,120]
[340737906,1729758643737,-5000.0,0.00065,120]
[340737907,1729758643747,-2136.9042402,0.00065002,15]
[340737908,1729758643758,-757.04,0.00065068,60]
[340737909,1729758643768,-757.04,0.00065068,60]
[340737910,1729758643778,-757.04,0.00065068,60]
[340737911,1729758643787,-757.04,0.00065068,60]
[340737912,1729758643797,-425.93,0.0006539,2]
[340737913,1729758643807,-535.71,0.00065439,120]
[340737914,1729758643816,-535.71,0.00065439,120]
[340737915,1729758643826,-535.71,0.00065439,120]
[340737916,1729758643835,-535.71,0.00065439,120]
[340737917,1729758643845,-535.71,0.00065439,120]
[340737918,1729758643855,-535.71,0.00065439,120]
[340737919,1729758643866,-535.71,0.00065439,120]
[340737920,1729758643877,-535.76911608,0.00065439,120]
[340737921,1729758643887,-578.7,0.00065439,120]
[340737922,1729758643897,-578.7,0.00065439,120]
[340737923,1729758643907,-578.7,0.00065439,120]
[340737924,1729758643917,-578.7,0.00065439,120]
[340737925,1729758643927,-578.7,0.00065439,120]
[340737926,1729758643936,-578.7,0.00065439,120]
[340737927,1729758643946,-578.7,0.00065439,120]
[340737928,1729758643957,-578.93556629,0.00065439,120]
[340737929,1729758643966,-500.0,0.00065439,120]
[340737930,1729758643976,-478.0,0.00065439,120]
[340737931,1729758643986,-623.46,0.00065439,120]
[340737932,1729758643995,-623.46,0.00065439,120]
[340737933,1729758644005,-623.46,0.00065439,120]
[340737934,1729758644016,-623.46,0.00065439,120]
[340737935,1729758644026,-623.46,0.00065439,120]
[340737936,1729758644036,-623.46,0.00065439,120]
[340737937,1729758644046,-623.46,0.00065439,120]
[340737938,1729758644055,-623.6296,0.00065439,120]
[340737939,1729758644065,-674.94,0.00065439,120]
[340737940,1729758644075,-674.94,0.00065439,120]
[340737941,1729758644085,-674.94,0.00065439,120]
[340737942,1729758644095,-674.94,0.00065439,120]
[340737943,1729758644104,-674.94,0.00065439,120]
[340737944,1729758644115,-675.14909494,0.00065439,120]
[340737945,1729758644124,-508.27,0.00065439,120]
[340737946,1729758644135,-508.27,0.00065439,120]
[340737947,1729758644145,-508.27,0.00065439,120]
[340737948,1729758644155,-508.27,0.00065439,120]
[340737949,1729758644165,-508.27,0.00065439,120]
[340737950,1729758644174,-508.27187285,0.00065439,120]
[340737951,1729758644184,-3325.66,0.00065439,120]
[340737952,1729758644194,-3325.66,0.00065439,120]
[340737953,1729758644206,-3325.66,0.00065439,120]
[340737954,1729758644235,-3325.66,0.00065439,120]
[340737955,1729758644245,-3325.66,0.00065439,120]
[340737956,1729758644255,-3325.66,0.00065439,120]
[340737957,1729758644266,-1000000.0,0.0006544,30]
[340737958,1729758644275,-400.0,0.0006544,120]
[340737959,1729758644285,-400.0,0.0006544,120]
[340737960,1729758644296,-774.2597,0.000655,2]
[340737961,1729758644305,-9515.31669399,0.00065698,120]
[340737962,1729758644316,-224485.0,0.0006579,30]
[340737963,1729758644326,-2136.9042402,0.00065864,15]
[340737964,1729758644336,-50000.0,0.00066,56]
[340737965,1729758644345,-1100398.65591225,0.00066,120]
[340737966,1729758644356,-214.70555435,0.00066,60]
[340737967,1729758644366,-1754.79188784,0.00066,61]
[340737968,1729758644376,-2000.0,0.00066,120]
[340737969,1729758644386,-5000.37,0.00066,120]
[340737970,1729758644396,-158.6116651,0.00066003,4]
[340737971,1729758644406,-427.28,0.00066003,4]
[340737972,1729758644415,-180.1121727,0.00066003,4]
[340737973,1729758644425,-158.6116651,0.00066454,4]
[340737974,1729758644434,-474.368,0.00066454,4]
[340737975,1729758644444,-199.5644703,0.00066454,4]
[340737976,1729758644457,-515829.0,0.000665,120]
[340737977,1729758644466,-2136.9042402,0.00066727,15]
[340737978,1729758644476,-158.6116651,0.00066954,4]
[340737979,1729758644486,-158.6116651,0.00066954,4]
[340737980,1729758644496,-521.456,0.00066954,4]
[340737981,1729758644507,-568.544,0.00066954,4]
[340737982,1729758644518,-219.016768,0.00066954,4]
[340737983,1729758644529,-238.4690656,0.00066954,4]
[340737984,1729758644539,-855.23,0.00066986,60]
[340737985,1729758644549,-757.04,0.00066986,60]
[340737986,1729758644559,-424.81,0.00066986,60]
[340737987,1729758644570,-757.04,0.00066986,60]
[340737988,1729758644580,-424.81,0.00066986,60]
[340737989,1729758644590,-757.04,0.00066986,60]
[340737990,1729758644600,-50000.0,0.00067,57]
[340737991,1729758644610,-3000.0,0.00067,120]
[340737992,1729758644620,-500000.0,0.00067,120]
[340737993,1729758644632,-5000.0,0.00067,120]
[340737994,1729758644642,-318.52953054,0.00067395,30]
[340737995,1729758644653,-3572.12788799,0.00067395,2]
[340737996,1729758644663,-179.75450151,0.00067395,2]
[340737997,1729758644673,-158.6116651,0.00067454,5]
[340737998,1729758644683,-158.6116651,0.00067454,5]
[340737999,1729758644695,-615.6320001,0.00067454,5]
[340738000,1729758644707,-662.7200001,0.00067454,5]
[340738001,1729758644717,-257.9213633,0.00067454,5]
[340738002,1729758644727,-277.3736609,0.00067454,5]
[340738003,1729758644738,-500000.0,0.000675,120]
[340738004,1729758644748,-2136.9042402,0.00067589,15]
[340738005,1729758644759,-425.93,0.00067654,2]
[340738006,1729758644769,-161569.96685908,0.0006767,120]
[340738007,1729758644780,-12531.53743721,0.000678,120]
[340738008,1729758644790,-5154.3953221,0.000678,120]
[340738009,1729758644801,-803.89,0.00067945,60]
[340738010,1729758644811,-203.0,0.0006799,30]
[340738011,1729758644821,-207.0,0.0006799,30]
[340738012,1729758644831,-28877.83988856,0.00067998,120]
[340738013,1729758644840,-4160.77,0.00067999,120]
[340738014,1729758644850,-4160.77,0.00067999,120]
[340738015,1729758644860,-4160.77,0.00067999,120]
[340738016,1729758644873,-4160.77,0.00067999,120]
[340738017,1729758644885,-4160.77,0.00067999,120]
[340738018,1729758644896,-4160.77,0.00067999,120]
[340738019,1729758644906,-4160.77,0.00067999,120]
[340738020,1729758644917,-4160.77,0.00067999,120]
[340738021,1729758644929,-4160.77,0.00067999,120]
[340738022,1729758644940,-4160.87097575,0.00067999,120]
[340738023,1729758644951,-50000.0,0.00068,58]
[340738024,1729758644961,-326.20875798,0.00068,120]
[340738025,1729758644972,-1000.0,0.00068,120]
[340738026,1729758644983,-582179.67242495,0.00068,120]
[340738027,1729758644994,-300.0,0.00068,120]
[340738028,1729758645005,-500000.0,0.00068,120]
[340738029,1729758645016,-500000.0,0.00068,120]
[340738030,1729758645026,-2110.0,0.00068,2]
[340738031,1729758645036,-500000.0,0.00068,120]
[340738032,1729758645047,-553293.77587797,0.00068,120]
[340738033,1729758645062,-146706.22412203,0.00068,120]
[340738034,1729758645073,-1103.686,0.00068,120]
[340738035,1729758645083,-358.38793308,0.00068,60]
[340738036,1729758645094,-289.0,0.00068,50]
[340738037,1729758645105,-208.0,0.00068,120]
[340738038,1729758645115,-158.532182,0.00068,120]
[340738039,1729758645126,-5005.17,0.00068,120]
[340738040,1729758645137,-13894.89626564,0.00068,30]
[340738041,1729758645147,-172.20981051,0.00068395,113]
[340738042,1729758645158,-2136.9042402,0.00068451,15]
[340738043,1729758645168,-300.0,0.00068493,120]
[340738044,1729758645179,-300.0,0.00068493,120]
[340738045,1729758645189,-300.0,0.00068493,120]
[340738046,1729758645199,-300.0,0.00068493,120]
[340738047,1729758645209,-300.0,0.00068493,120]
[340738048,1729758645220,-300.0,0.00068493,120]
[340738049,1729758645230,-300.0,0.00068493,120]
[340738050,1729758645242,-300.0,0.00068493,120]
[340738051,1729758645251,-300.0,0.00068493,120]
[340738052,1729758645262,-300.0,0.00068493,120]
[340738053,1729758645273,-300.0,0.00068493,120]
[340738054,1729758645282,-300.0,0.00068493,120]
[340738055,1729758645292,-300.0,0.00068493,120]
[340738056,1729758645302,-300.0,0.00068493,120]
[340738057,1729758645313,-300.0,0.00068493,120]
[340738058,1729758645324,-300.0,0.00068493,120]
[340738059,1729758645335,-203.39028769,0.00068493,120]
[340738060,1729758645346,-395.78,0.000685,2]
[340738061,1729758645357,-150.0,0.00068767,120]
[340738062,1729758645367,-150.0,0.00068767,120]
[340738063,1729758645378,-156.94,0.00068767,120]
[340738064,1729758645388,-152.02,0.00068767,120]
[340738065,1729758645398,-738.55,0.00068767,120]
[340738066,1729758645409,-444.4,0.00068767,120]
[340738067,1729758645419,-359.76,0.00068767,120]
[340738068,1729758645430,-150.0,0.00068767,120]
[340738069,1729758645441,-150.0,0.00068767,120]
[340738070,1729758645452,-150.0,0.00068767,120]
[340738071,1729758645463,-150.0,0.00068767,120]
[340738072,1729758645473,-161.48,0.00068767,120]
[340738073,1729758645484,-150.0,0.00068767,120]
[340738074,1729758645494,-150.0,0.00068767,120]
[340738075,1729758645504,-150.0,0.00068767,120]
[340738076,1729758645515,-359.76,0.00068767,120]
[340738077,1729758645526,-150.0,0.00068767,120]
[340738078,1729758645537,-150.0,0.00068767,120]
[340738079,1729758645547,-638.04506264,0.0006888,120]
[340738080,1729758645558,-110833.25751591,0.000689,120]
[340738081,1729758645569,-1654.45,0.00068904,120]
[340738082,1729758645579,-424.81,0.00068904,120]
[340738083,1729758645590,-424.81,0.00068904,120]
[340738084,1729758645601,-424.81,0.00068904,120]
[340738085,1729758645611,-966.31,0.00068904,120]
[340738086,1729758645622,-50000.0,0.00069,59]
[340738087,1729758645632,-50000.0,0.00069,69]
[340738088,1729758645643,-48517.27276927,0.00069,120]
[340738089,1729758645992,-988.41089785,0.0006512,120]
[340738090,1729758646050,-1623.79910215,0.0006512,120]
[340738091,1729758646061,-3325.86807443,0.00065439,120]
[340738092,1729758646071,-451482.72723073,0.00069,120]
[340738093,1729758646081,-2136.9042402,0.00069313,15]
[340738094,1729758646090,-150.0,0.00069589,120]
[340738095,1729758646100,-150.0,0.00069589,120]
[340738096,1729758646111,-150.0,0.00069589,120]
[340738097,1729758646121,-150.0,0.00069589,120]
[340738098,1729758646130,-352.58,0.00069589,120]
[340738099,1729758646140,-150.0,0.00069589,120]
[340738100,1729758646150,-150.0,0.00069589,120]
[340738101,1729758646160,-150.0,0.00069589,120]
[340738102,1729758646169,-150.0,0.00069589,120]
[340738103,1729758646180,-150.0,0.00069589,120]
[340738104,1729758646190,-150.0,0.00069589,120]
[340738105,1729758646199,-150.0,0.00069589,120]
[340738106,1729758646210,-150.0,0.00069589,120]
[340738107,1729758646220,-302.33,0.00069589,120]
[340738108,1729758646230,-301.04,0.00069589,120]
[340738109,1729758646240,-150.0,0.00069589,120]
[340738110,1729758646250,-150.0,0.00069589,120]
[340738111,1729758646260,-150.0,0.00069589,120]
[340738112,1729758646269,-150.0,0.00069589,120]
[340738113,1729758646279,-150.0,0.00069589,120]
[340738114,1729758646289,-150.0,0.00069589,120]
[340738115,1729758646300,-150.0,0.00069589,120]
[340738116,1729758646311,-150.0,0.00069589,120]
[340738117,1729758646323,-150.0,0.00069589,120]
[340738118,1729758646334,-150.0,0.00069589,120]
[340738119,1729758646344,-150.0,0.00069589,120]
[340738120,1729758646356,-150.0,0.00069589,120]
[340738121,1729758646366,-150.0,0.00069589,120]
[340738122,1729758646378,-150.0,0.00069589,120]
[340738123,1729758646389,-150.0,0.00069589,120]
[340738124,1729758646399,-150.0,0.00069589,120]
[340738125,1729758646408,-150.0,0.00069589,120]
[340738126,1729758646418,-150.0,0.00069589,120]
[340738127,1729758646428,-150.0,0.00069589,120]
[340738128,1729758646438,-150.0,0.00069589,120]
[340738129,1729758646447,-150.0,0.00069589,120]
[340738130,1729758646458,-150.0,0.00069589,120]
[340738131,1729758646468,-150.0,0.00069589,120]
[340738132,1729758646477,-150.0,0.00069589,120]
[340738133,1729758646487,-150.0,0.00069589,120]
[340738134,1729758646497,-150.0,0.00069589,120]
[340738135,1729758646506,-150.0,0.00069589,120]
[340738136,1729758646516,-7815.1075,0.0006978,30]
[340738137,1729758646526,-261.4,0.0006985,120]
[340738138,1729758646535,-318.52953054,0.000699,30]
[340738139,1729758646545,-3572.12788799,0.000699,2]
[340738140,1729758646555,-179.75450151,0.000699,2]
[340738141,1729758646565,-425.93,0.00069917,2]
[340738142,1729758646574,-200.0,0.00069999,40]
[340738143,1729758646584,-100000.0,0.0007,70]
[340738144,1729758646593,-1689.80053494,0.0007,120]
[340738145,1729758646603,-281.28043469,0.0007,120]
[340738146,1729758646612,-300.0,0.0007,120]
[340738147,1729758646622,-500.0,0.0007,120]
[340738148,1729758646631,-500000.0,0.0007,120]
[340738149,1729758646641,-316571.08077052,0.0007,120]
[340738153,1729758961452,150.0,0.00019725,2]
[340738154,1729758961477,150.0,0.00019725,2]
[340738155,1729758998754,150.0,0.0002,2]
[340738156,1729759063744,150.0,0.00015342,2]
[340738157,1729759063769,13.29,0.00015342,2]
[340738158,1729759339972,250.0,0.0001,2]
[340738159,1729759556007,150.0,0.00015342,2]
[340738160,1729759556030,17.83,0.00015342,2]
[340738161,1729759648134,-150.0,0.00034548,10]
[340738162,1729759648154,-366.0,0.000371,2]
[340738163,1729759648172,-732.0,0.000562,7]
[340738164,1729759648191,-113.88697911,0.000562,7]
[340738178,1729759832107,-329.0,0.000371,2]
[340738179,1729759832116,-136.78806071,0.0005052,2]
[340738180,1729759832127,-30.63193929,0.0005052,2]
[340738181,1729759832137,-230.76463956,0.000562,7]
[340738182,1729759832148,-387.34838133,0.000562,7]
[340738183,1729759832158,-173.40798076,0.000564,2]
[340738184,1729759832167,-1269.29404771,0.000565,12]
[340738185,1729759832178,-377.70595229,0.000565,12]
[340738186,1729759832187,-890.0,0.00059,20]
[340738187,1729759832196,-707.11654771,0.0006,5]
[340738188,1729759832210,-1292.88345229,0.0006,5]
[340738189,1729759832219,-585.82,0.000614,7]
[340738190,1729759832228,-585.82,0.000614,7]
[340738191,1729759832242,-1318.55979298,0.000617,101]
[340738192,1729759832251,-1262.73361912,0.000617,30]
[340738193,1729759832262,-2613.10872722,0.000617,30]
[340738194,1729759832273,-573.88723251,0.000617,30]
[340738195,1729759832285,-3734.09707036,0.000617,30]
[340738196,1729759832295,-545.14041305,0.000617,30]
[340738197,1729759832389,-3153.99,0.000617,30]
[340738198,1729759832401,-669.94125223,0.000617,30]
[340738207,1729759838091,-4627.93937075,0.000617,30]
[340738209,1729759838146,-927.28231476,0.000617,30]
[340738210,1729759838155,-149.91102522,0.000617,60]
[340738211,1729759838321,-30.07897478,0.000617,60]
[340738212,1729759838331,-202.32444746,0.00062539,2]
[340738213,1729759838343,-242.60555254,0.00062539,2]
[340738214,1729759838353,-195.45,0.00063068,30]
[340738215,1729759838362,-250.0,0.00063132,120]
[340738216,1729759838371,-250.0,0.0006317,120]
[340738217,1729759838380,-313.76,0.0006321,7]
[340738218,1729759838390,-313.76,0.0006321,7]
[340738219,1729759838400,-344.52,0.00063225,2]
[340738220,1729759838409,-200.0,0.00063245,2]
[340738221,1729759838418,-150.99,0.00063245,2]
[340738222,1729759838428,-244.11987873,0.00063409,120]
[340738223,1729759838439,-659.88012127,0.00063409,120]
[340738224,1729759838448,-152.17,0.00063558,2]
[340738225,1729759838458,-152.17,0.00063576,2]
[340738226,1729759838469,-807.12,0.00063589,2]
[340738227,1729759838478,-152.17,0.00063594,2]
[340738228,1729759838487,-152.17,0.00063611,2]
[340738229,1729759838497,-152.17,0.00063629,2]
[340738230,1729759838507,-152.17,0.00063647,2]
[340738231,1729759838516,-152.17,0.00063664,2]
[340738232,1729759838526,-152.17,0.00063682,2]
[340738233,1729759838535,-152.17,0.000637,2]
[340738234,1729759838544,-152.17,0.00063717,2]
[340738235,1729759838554,-152.17,0.00063735,2]
[340738236,1729759838563,-152.17,0.00063752,2]
[340738237,1729759838574,-152.17,0.0006377,2]
[340738238,1729759838585,-152.17,0.00063788,2]
[340738239,1729759838594,-150.0,0.00063788,12]
[340738240,1729759838604,-152.17,0.00063805,2]
[340738241,1729759838613,-152.17,0.00063823,2]
[340738242,1729759838622,-2462.16,0.0006384,7]
[340738243,1729759838631,-662.16525239,0.0006384,7]
[340738244,1729759838647,-10026.759632,0.0006384,7]
[340738253,1729759840471,-1282.56189054,0.0006384,7]
[340738254,1729759840483,-2161.93590095,0.0006384,7]
[340738261,1729759843145,-6715.23929992,0.0006384,7]
[340738262,1729759843200,-1318.33863005,0.0006384,7]
[340738263,1729759843362,-1192.0235354,0.0006384,7]
[340738266,1729759846101,-4496.90585875,0.0006384,7]
[340738267,1729759846111,-152.17,0.00063841,2]
[340738268,1729759846120,-152.17,0.00063858,2]
[340738269,1729759846129,-152.17,0.00063876,2]
[340738270,1729759846139,-1562.56,0.00064008,2]
[340738271,1729759846147,-250.0,0.00064091,120]
[340738272,1729759846157,-1000.0,0.00064139,14]
[340738273,1729759846166,-497.597,0.00064139,120]